bitfinex-derivatives/quotes_ETHF0:USTF0_20250702
["timestamp","ask_amount","ask_price","bid_price","bid_amount"]
[1751435634159,0.81927,2440.9,2440.7,2.1849]
[1751435634359,0.81927,2440.9,2440.8,2.18488]
[1751435634658,1.50131,2441.1,2440.9,0.81925]
[1751435634858,1.50131,2441.1,2441.0,1.3656]
[1751435635665,1.50131,2441.1,2441.0,2.18481]
[1751435636064,0.6821,2441.1,2441.0,2.18481]
[1751435636765,1.50128,2441.1,2441.0,2.18481]
[1751435637263,1.50128,2441.1,2441.0,1.3656]
[1751435637764,1.50128,2441.1,2441.0,2.18481]
[1751435638559,1.50128,2441.1,2441.0,1.3656]
[1751435638956,1.50128,2441.1,2441.0,2.18481]
[1751435639266,1.50128,2441.1,2441.0,1.3656]
[1751435640969,0.81925,2440.9,2440.8,3.18062044]
[1751435641163,0.6821,2441.1,2440.7,1.3193]
[1751435641467,0.81921,2441.0,2440.9,0.81922]
[1751435641765,0.81921,2441.0,2440.9,2.13852]
[1751435642266,0.81921,2441.0,2440.9,1.3193]
[1751435642667,0.81921,2441.0,2440.9,2.13855]
[1751435643468,1.5013,2441.1,2441.0,0.81921]
[1751435644266,0.81921,2441.0,2440.9,1.3193]
[1751435644468,0.81921,2441.0,2440.9,2.13855]
[1751435644767,1.5013,2441.1,2440.9,2.13855]
[1751435645161,0.81921,2441.0,2440.9,1.3193]
[1751435645362,0.81921,2441.0,2440.9,2.13855]
[1751435646268,0.81921,2441.0,2440.9,1.3193]
[1751435646464,0.81921,2441.0,2440.9,2.13855]
[1751435647266,0.81921,2441.0,2440.9,1.3193]
[1751435648161,2.04808,2441.0,2440.6,0.81933]
[1751435648362,0.81932,2440.7,2440.6,0.81933]
[1751435648967,1.50102,2440.7,2440.6,0.81933]
[1751435649867,1.50102,2440.7,2440.6,0.81935]
[1751435650067,0.81935,2440.6,2440.5,1.4033]
[1751435650667,0.81935,2440.6,2440.5,2.22268]
[1751435651369,1.50102,2440.7,2440.6,0.81935]
[1751435651564,0.81935,2440.6,2440.5,2.22266]
[1751435652267,1.50104,2440.7,2440.6,0.81935]
[1751435652570,0.6817,2440.7,2440.6,2.14325]
[1751435652868,1.50101,2440.7,2440.6,2.14325]
[1751435653771,1.50101,2440.7,2440.6,1.3239]
[1751435655770,0.81935,2440.6,2440.5,0.81938]
[1751435655971,0.81935,2440.6,2440.5,2.26568]
[1751435656870,0.81935,2440.6,2440.5,1.4463]
[1751435657171,0.81935,2440.6,2440.5,2.26568]
[1751435658262,0.8194,2440.5,2440.3,0.81941]
[1751435658468,0.8194,2440.5,2440.3,1.3269]
[1751435659170,0.81938,2440.5,2440.4,0.81939]
[1751435659659,0.81938,2440.5,2440.4,2.86329]
[1751435661778,0.81938,2440.5,2440.4,2.0439]
[1751435662179,0.81938,2440.5,2440.4,2.86331]
[1751435663874,0.6817,2440.7,2440.4,2.86331]
[1751435664077,0.81935,2440.6,2440.5,1.3808]
[1751435693705,0.81935,2440.6,2440.5,3.03464681]
[1751435693902,0.81935,2440.6,2440.5,3.85402681]
[1751435694804,1.50103,2440.7,2440.5,3.85402681]
[1751435695003,1.50103,2440.7,2440.6,1.3893]
[1751435695302,1.50103,2440.7,2440.6,2.20865]
[1751435696906,1.50103,2440.7,2440.6,1.3893]
[1751435698007,1.50103,2440.7,2440.6,2.20865]
[1751435698200,1.50103,2440.7,2440.6,1.3893]
[1751435700705,0.6817,2440.7,2440.6,1.3893]
[1751435700905,1.50101,2440.7,2440.6,1.3893]
[1751435704806,1.50101,2440.7,2440.4,0.8194]
[1751435704807,0.81938,2440.5,2440.4,0.8194]
[1751435705006,0.81941,2440.4,2440.3,2.85982]
[1751435705206,1.49631,2440.4,2440.3,2.18482]
[1751435706009,0.6769,2440.4,2440.3,2.18482]
[1751435707919,0.81937,2440.6,2440.5,0.81937]
[1751435709017,0.81937,2440.6,2440.5,2.17767]
[1751435709223,0.81937,2440.6,2440.5,1.3583]
[1751435709519,0.81937,2440.6,2440.5,2.17768]
[1751435709721,0.81937,2440.6,2440.5,2.86338]
[1751435709922,0.81937,2440.6,2440.5,1.3583]
[1751435712717,0.81937,2440.6,2440.5,2.17768]
[1751435712917,0.81937,2440.6,2440.5,1.3583]
[1751435714127,0.81937,2440.6,2440.5,2.17768]
[1751435715628,0.81933,2440.7,2440.6,0.81934]
[1751435715821,0.81933,2440.7,2440.6,2.26854]
[1751435716128,0.81933,2440.7,2440.6,1.4492]
[1751435720724,2.47317681,2440.7,2440.6,1.4492]
[1751435722331,0.81933,2440.7,2440.6,1.4492]
[1751435722530,2.47317681,2440.7,2440.6,1.4492]
[1751435724234,2.45338676,2441.8,2440.6,3.10304681]
[1751435724429,0.6597,2441.3,2441.2,1.65384681]
[1751435724729,1.65384681,2441.8,2441.2,2.35304681]
[1751435724930,3.6434584,2441.7,2441.2,2.35304681]
[1751435725234,2.47290681,2441.5,2441.3,2.1448]
[1751435725430,2.47290681,2441.5,2441.4,1.3257]
[1751435725631,0.81909,2441.4,2441.2,1.51833]
[1751435726133,0.81906,2441.5,2441.3,2.14481]
[1751435726330,0.81906,2441.5,2441.4,1.3257]
[1751435728230,0.81911,2441.3,2441.2,0.6992]
[1751435728535,0.81911,2441.3,2441.2,2.1314]
[1751435729936,0.8191,2441.4,2441.2,2.1314]
[1751435730134,0.6597,2441.7,2440.2,2.04867]
[1751435730135,2.36130095,2441.3,2440.2,2.04867]
[1751435730332,2.36130095,2440.9,2440.7,2.0427]
[1751435730636,0.81922,2441.0,2440.8,2.18288]
[1751435731330,0.81925,2440.9,2440.8,1.3636]
[1751435732735,2.36130095,2441.1,2440.8,1.3636]
[1751435732736,0.81923,2441.0,2440.8,2.18288]
[1751435732936,0.81923,2441.0,2440.9,1.3636]
[1751435738433,0.8192,2441.1,2440.9,2.18283]
[1751435738640,0.81918,2441.1,2440.9,2.18283]
[1751435738840,0.81918,2441.1,2441.0,1.4122]
[1751435740538,0.81918,2441.1,2441.0,2.23141]
[1751435740835,0.81918,2441.1,2441.0,1.4122]
[1751435741642,3.03960095,2441.2,2440.8,1.50507]
[1751435741836,0.81925,2440.9,2440.8,0.6858]
[1751435742033,0.81925,2440.9,2440.8,2.90058]
[1751435742545,0.81923,2441.0,2440.9,0.81925]
[1751435742744,0.8192,2441.1,2440.9,2.21515]
[1751435743046,0.81921,2441.0,2440.9,1.3959]
[1751435743544,0.81921,2441.0,2440.9,2.21515]
[1751435743851,0.81921,2441.0,2440.9,1.3959]
[1751435744642,0.81925,2440.9,2440.7,0.8193]
[1751435744947,0.81925,2440.9,2440.7,2.2152]
[1751435745150,0.81925,2440.9,2440.8,1.3657]
[1751435745348,0.81925,2440.9,2440.8,2.18498]
[1751435745745,0.81928,2440.8,2440.7,0.81929]
[1751435746250,3.18058095,2440.8,2440.7,1.3657]
[1751435750148,0.81928,2440.8,2440.7,1.3657]
[1751435751049,0.81928,2440.8,2440.7,2.18501]
[1751435751350,0.81928,2440.8,2440.7,1.3657]
[1751435752751,0.81928,2440.8,2440.7,2.18501]
[1751435753141,1.50057,2440.9,2440.8,0.81928]
[1751435753346,1.50057,2440.9,2440.8,1.4408]
[1751435760358,2.04754,2441.6,2440.8,3.48897]
[1751435760657,0.81911,2441.3,2441.2,3.18044095]
[1751435761463,0.6691,2441.5,2441.2,3.18044095]
[1751435761651,0.8191,2441.4,2441.3,2.21661]
[1751435761851,0.8191,2441.4,2441.3,1.3975]
[1751435762058,1.48817,2441.5,2441.3,1.3975]
[1751435762263,0.6691,2441.5,2441.4,0.81908]
[1751435762664,0.6691,2441.5,2441.4,2.21658]
[1751435764068,0.81904,2441.6,2441.4,2.21658]
[1751435764262,0.81904,2441.6,2441.5,1.3996]
[1751435764770,0.81904,2441.6,2441.5,2.21865]
[1751435765873,0.81904,2441.6,2441.5,1.3996]
[1751435767873,0.81904,2441.6,2441.5,2.21865]
[1751435770170,0.81904,2441.6,2441.5,1.3996]
[1751435770771,2.44881538,2443.3,2441.6,4.09501]
[1751435771079,0.7028,2443.5,2443.0,0.81853]
[1751435771280,2.12753234,2443.4,2443.1,2.1391]
[1751435771573,0.81846,2443.3,2442.6,11.511]
[1751435771777,0.81848,2443.2,2442.9,0.81856]
[1751435771965,11.511,2443.8,2442.7,1.3206]
[1751435772167,2.36130095,2443.3,2442.7,3.68190095]
[1751435772473,36.521,2443.8,2442.8,0.8186]
[1751435772474,0.81856,2443.0,2442.8,0.8186]
[1751435773174,3.17983095,2443.1,2442.8,0.8186]
[1751435773877,0.81855,2443.0,2442.7,2.13922]
[1751435774073,0.81858,2442.9,2442.8,1.3555]
[1751435774276,2.36130095,2442.9,2442.5,12.8956]
[1751435774473,3.17990095,2442.9,2442.6,2.17416]
[1751435774777,0.8186,2442.9,2442.6,1.3555]
[1751435774981,0.8186,2442.9,2442.6,2.17416]
[1751435775475,0.81864,2442.7,2442.6,1.3555]
[1751435775674,0.81864,2442.7,2442.1,2.36130095]
[1751435775675,0.81868,2442.6,2442.1,2.36130095]
[1751435775874,0.7107,2442.6,2442.4,0.81873]
[1751435776071,1.52938,2442.6,2442.4,0.81873]
[1751435776276,0.7107,2442.6,2442.4,0.81873]
[1751435776481,0.7107,2442.6,2442.5,1.387]
[1751435778981,0.7107,2442.6,2442.5,2.20571]
[1751435779179,0.7107,2442.6,2442.5,1.387]
[1751435779579,0.7107,2442.6,2442.5,2.20571]
[1751435779777,1.52938,2442.6,2442.5,1.387]
[1751435780782,0.7107,2442.6,2442.5,2.20571]
[1751435781977,1.52938,2442.6,2442.5,2.20571]
[1751435782381,1.52938,2442.6,2442.5,1.387]
[1751435783480,0.7107,2442.6,2442.5,2.20571]
[1751435783681,0.7127,2443.0,2442.5,1.387]
[1751435783883,1.53126,2443.0,2442.9,2.36130095]
[1751435784080,0.81861,2442.9,2442.7,3.17992095]
[1751435784287,0.81861,2442.9,2442.8,1.4149]
[1751435786183,0.81864,2442.7,2442.6,3.17996095]
[1751435786380,0.81864,2442.7,2442.6,4.56396095]
[1751435786687,0.81864,2442.7,2442.6,3.74530095]
[1751435786885,0.81871,2442.5,2442.1,0.678]
[1751435787088,0.81872,2442.5,2442.4,0.81873]
[1751435787985,0.8187,2442.6,2442.4,0.81873]
[1751435788185,0.81868,2442.6,2442.5,1.3721]
[1751435790495,0.81878,2442.3,2442.2,0.6688]
[1751435790791,2.36130095,2442.4,2442.1,0.678]
[1751435790991,0.81881,2442.2,2442.1,1.3742]
[1751435794393,2.04687,2442.4,2441.6,2.36130095]
[1751435794590,0.81896,2441.8,2441.7,0.81897]
[1751435795386,0.81896,2441.8,2441.7,0.6884]
[1751435796092,0.81894,2441.9,2441.7,1.50738]
[1751435796396,0.81894,2441.8,2441.7,0.6884]
[1751435796594,0.81894,2441.8,2441.7,3.86867095]
[1751435797397,2.04633,2443.1,2441.7,15.73738181]
[1751435797598,0.81864,2442.7,2442.6,2.36130095]
[1751435800899,0.7112,2442.9,2442.6,2.36130095]
[1751435801101,1.52979,2442.9,2442.8,2.36130095]
[1751435802300,0.81861,2442.8,2442.7,0.81863]
[1751435802495,0.81861,2442.8,2442.7,3.17993095]
[1751435804602,1.52979,2442.9,2442.7,3.17993095]
[1751435805706,1.52979,2442.9,2442.8,1.4516]
[1751435806307,1.52979,2442.9,2442.8,2.27021]
[1751435807007,1.52979,2442.9,2442.8,1.4516]
[1751435807507,1.52979,2442.9,2442.8,2.27021]
[1751435808207,1.52979,2442.9,2442.8,1.4516]
[1751435808602,1.52979,2442.9,2442.8,2.27021]
[1751435808798,1.52979,2442.9,2442.8,1.4516]
[1751435813309,0.7112,2442.9,2442.5,0.7081]
[1751435813510,0.7112,2442.9,2442.7,0.81864]
[1751435813704,0.81866,2442.7,2442.6,0.81866]
[1751435813905,0.81866,2442.7,2442.6,2.22576]
[1751435814806,0.81866,2442.7,2442.6,1.4071]
[1751435816407,0.81866,2442.7,2442.6,2.22578]
[1751435816808,0.81863,2442.8,2442.7,0.81863]
[1751435817011,0.81863,2442.8,2442.7,2.14303]
[1751435819117,0.81863,2442.8,2442.7,1.3244]
[1751435819311,0.81863,2442.8,2442.7,2.14304]
[1751435827027,1.52979,2442.9,2442.8,0.81861]
[1751435827319,0.7112,2442.9,2442.8,2.21761]
[1751435828519,0.81855,2443.0,2442.9,0.81855]
[1751435828921,0.81858,2442.9,2442.8,2.21759]
[1751435830321,0.81857,2443.0,2442.9,0.81856]
[1751435830818,0.81858,2442.9,2442.8,2.21759]
[1751435831618,0.81858,2442.9,2442.8,1.399]
[1751435832824,0.81858,2442.9,2442.8,2.21761]
[1751435833522,0.81858,2442.9,2442.8,1.399]
[1751435834725,0.81861,2442.8,2442.7,0.675]
[1751435835318,0.81861,2442.8,2442.7,2.0363]
[1751435835518,0.81861,2442.8,2442.7,2.85494]
[1751435835918,0.81861,2442.8,2442.7,8.52052698]
[1751435838320,0.81861,2442.8,2442.7,2.85494]
[1751435838521,0.81861,2442.8,2442.7,5.21624095]
[1751435842328,0.81861,2442.8,2442.7,4.39760095]
[1751435842829,0.81861,2442.8,2442.7,2.0363]
[1751435843530,0.81861,2442.8,2442.7,1.3613]
[1751435844825,0.81864,2442.7,2442.6,5.66558698]
[1751435845628,0.81864,2442.7,2442.6,7.02528698]
[1751435846630,0.81864,2442.7,2442.6,5.66558698]
[1751435846831,0.81868,2442.6,2442.5,5.66558698]
[1751435847129,0.81871,2442.5,2442.4,5.66558698]
[1751435847329,0.81871,2442.5,2442.4,7.02508698]
[1751435848031,0.81871,2442.5,2442.4,7.84382698]
[1751435848231,0.81871,2442.5,2442.4,7.73508698]
[1751435848733,0.81871,2442.5,2442.4,2.0695]
[1751435848930,0.81871,2442.5,2442.4,2.88824]
[1751435849123,0.81871,2442.5,2442.4,2.0695]
[1751435850039,0.81871,2442.5,2442.4,2.88824]
[1751435850442,0.81871,2442.5,2442.4,2.0695]
[1751435851042,0.81871,2442.5,2442.4,2.88824]
[1751435852240,0.81871,2442.5,2442.4,2.0695]
[1751435852941,0.81871,2442.5,2442.4,2.88824]
[1751435853841,0.81871,2442.5,2442.4,2.0695]
[1751435854939,0.81871,2442.5,2442.4,2.88824]
[1751435856045,0.81871,2442.5,2442.4,2.0695]
[1751435856240,0.81871,2442.5,2442.4,2.88824]
[1751435859042,0.81871,2442.5,2442.4,2.7726]
[1751435859744,0.81871,2442.5,2442.4,3.59134]
[1751435859950,0.81871,2442.5,2442.4,2.7726]
[1751435860143,0.81871,2442.6,2442.4,3.59134]
[1751435860343,0.81871,2442.6,2442.5,4.51241095]
[1751435861450,0.81871,2442.6,2442.5,3.69370095]
[1751435861943,0.81871,2442.6,2442.5,4.51241095]
[1751435863049,0.81871,2442.6,2442.5,3.69370095]
[1751435863449,0.81871,2442.6,2442.5,4.51241095]
[1751435863649,0.81871,2442.6,2442.5,3.69370095]
[1751435866051,0.81871,2442.6,2442.5,1.3324]
[1751435874252,0.81874,2442.4,2442.3,6.48434698]
[1751435874954,0.81874,2442.4,2442.3,7.90284698]
[1751435875352,0.81874,2442.4,2442.3,8.56074698]
[1751435875553,0.81874,2442.4,2442.3,2.89516]
[1751435878762,0.81874,2442.4,2442.3,2.0764]
[1751435878959,0.81874,2442.4,2442.3,4.43770095]
[1751435879759,0.81873,2442.5,2442.4,0.81873]
[1751435879959,0.81873,2442.5,2442.4,10.98388584]
[1751435881465,0.81871,2442.5,2442.4,10.98387584]
[1751435882860,0.6818,2442.7,2442.4,10.16515584]
[1751435883064,2.04601,2443.5,2442.6,2.36130095]
[1751435883263,0.81848,2443.2,2443.1,2.36130095]
[1751435883562,0.81848,2443.2,2443.1,4.40280095]
[1751435883963,0.81848,2443.2,2443.1,5.22131095]
[1751435885261,0.81848,2443.2,2443.1,4.40280095]
[1751435886869,0.81848,2443.2,2443.1,5.22131095]
[1751435887165,0.81848,2443.2,2443.1,4.40280095]
[1751435888667,0.81858,2442.9,2442.8,46.48665489]
[1751435888871,0.81858,2442.9,2442.8,47.93895489]
[1751435889061,0.81856,2443.0,2442.8,43.07091]
[1751435889263,0.81856,2443.0,2442.9,3.81360095]
[1751435889470,0.81856,2443.0,2442.9,4.47740095]
[1751435890367,0.81856,2443.0,2442.9,5.29598095]
[1751435890770,0.6986,2443.1,2443.0,0.81854]
[1751435890969,0.6986,2443.1,2443.0,2.27084]
[1751435891674,1.51711,2443.1,2443.0,2.27084]
[1751435892371,1.51711,2443.1,2443.0,1.4523]
[1751435892879,1.51711,2443.1,2443.0,2.27084]
[1751435893873,1.51711,2443.1,2443.0,1.4523]
[1751435895777,1.51711,2443.1,2443.0,2.27084]
[1751435895975,1.51711,2443.1,2443.0,1.4523]
[1751435896679,1.51711,2443.1,2443.0,2.27084]
[1751435896978,1.51711,2443.1,2443.0,1.4523]
[1751435897477,0.6986,2443.1,2443.0,1.4523]
[1751435897679,0.6986,2443.1,2443.0,2.27084]
[1751435897975,1.51711,2443.1,2443.0,2.27084]
[1751435901288,0.6764,2443.6,2443.1,0.81848]
[1751435901477,0.81847,2443.3,2443.2,2.36130095]
[1751435901682,0.81847,2443.3,2443.2,4.62038095]
[1751435901978,0.81847,2443.3,2443.2,3.80190095]
[1751435902186,0.81847,2443.3,2443.2,4.62038095]
[1751435902386,0.81847,2443.3,2443.2,3.80190095]
[1751435905086,0.81847,2443.3,2443.2,1.4406]
[1751435905284,0.81851,2443.1,2443.0,2.36130095]
[1751435905484,0.81851,2443.1,2443.0,3.71610095]
[1751435905686,0.81851,2443.1,2443.0,4.53464095]
[1751435905895,0.81851,2443.1,2443.0,3.71610095]
[1751435906796,0.81858,2442.9,2442.8,10.25115584]
[1751435906997,0.81858,2442.9,2442.8,4.56450095]
[1751435907196,0.81858,2442.9,2442.8,1.4418]
[1751435907497,0.81861,2442.8,2442.7,5.68665489]
[1751435908185,0.81864,2442.7,2442.6,6.50533489]
[1751435908386,0.81864,2442.7,2442.6,7.94713489]
[1751435909395,0.81864,2442.7,2442.6,10.30843584]
[1751435909590,0.81864,2442.7,2442.6,9.48975584]
[1751435910196,0.81864,2442.7,2442.6,5.68665489]
[1751435910595,0.81868,2442.6,2442.5,5.68665489]
[1751435910995,0.81868,2442.6,2442.5,7.04915489]
[1751435912597,0.81868,2442.6,2442.5,1.3625]
[1751435913702,0.7011,2442.8,2442.6,0.81865]
[1751435913897,1.51971,2442.8,2442.7,3.68650095]
[1751435914100,1.51971,2442.8,2442.7,1.3252]
[1751435915302,1.51971,2442.8,2442.7,3.68650095]
[1751435917303,1.51971,2442.8,2442.7,1.3252]
[1751435919203,1.51971,2442.8,2442.7,1.9966]
[1751435919904,1.51971,2442.8,2442.7,4.35790095]
[1751435920909,1.51971,2442.8,2442.7,3.68650095]
[1751435923705,1.51971,2442.8,2442.7,4.50514095]
[1751435924006,0.7011,2442.8,2442.7,4.50514095]
[1751435924201,0.7011,2442.8,2442.7,5.17824095]
[1751435924511,0.81858,2442.9,2442.8,0.81859]
[1751435924714,0.81858,2442.9,2442.8,2.21599]
[1751435927312,0.81856,2443.0,2442.9,0.81856]
[1751435928813,0.7033,2443.1,2443.0,0.81854]
[1751435929508,0.7033,2443.1,2443.0,2.23064]
[1751435930115,1.52181,2443.1,2443.0,1.4121]
[1751435930416,1.52181,2443.1,2443.0,2.23064]
[1751435930617,1.52181,2443.1,2443.0,1.4121]
[1751435930916,0.81854,2443.0,2442.9,3.17986095]
[1751435931318,0.81854,2443.0,2442.9,0.81856]
[1751435932220,0.81858,2442.9,2442.8,0.81859]
[1751435932421,0.81855,2443.0,2442.9,0.81856]
[1751435934620,0.81858,2442.9,2442.8,2.13399]
[1751435935622,0.81856,2443.0,2442.9,0.81857]
[1751435935820,0.81856,2443.0,2442.9,2.23487]
[1751435940527,1.52184,2443.1,2442.9,2.23487]
[1751435941021,0.81854,2443.0,2442.9,2.23487]
[1751435942326,1.52183,2443.1,2443.0,0.81854]
[1751435942625,0.81854,2443.0,2442.9,2.23485]
[1751435943526,1.52183,2443.1,2443.0,0.81854]
[1751435944126,3.26508718,2445.0,2443.1,2.04628]
[1751435944323,8.1807,2446.7,2444.8,2.36130095]
[1751435944324,1.15468525,2444.9,2444.8,2.36130095]
[1751435944625,1.15468525,2444.9,2444.5,0.41187852]
[1751435944819,1.15468525,2444.8,2444.5,0.81801]
[1751435945019,1.15468525,2444.7,2444.4,11.527]
[1751435945225,2.36130095,2445.1,2444.2,41.5102]
[1751435945430,4.53404407,2445.0,2444.6,0.81798]
[1751435945636,1.06935407,2444.9,2444.7,0.81796]
[1751435945929,1.06935407,2444.8,2444.7,0.81796]
[1751435946125,2.6468,2445.0,2444.7,0.81796]
[1751435946727,2.6468,2445.0,2444.5,2.36130095]
[1751435947325,0.81796,2444.8,2444.5,2.36130095]
[1751435947530,0.81803,2444.6,2444.3,2.0936]
[1751435947734,0.81803,2444.6,2444.3,1.3798]
[1751435949732,0.81799,2444.7,2444.4,2.36130095]
[1751435950129,2.84726,2444.8,2444.4,2.36130095]
[1751435950530,2.84726,2444.8,2444.4,3.17936095]
[1751435951027,2.0293,2444.8,2444.5,0.81802]
[1751435951233,2.0293,2444.8,2444.6,2.36130095]
[1751435951434,2.84727,2444.8,2444.6,2.36130095]
[1751435952032,0.81798,2444.7,2444.6,2.36130095]
[1751435952435,0.81802,2444.6,2444.4,2.36130095]
[1751435953130,0.81799,2444.7,2444.4,3.17937095]
[1751435953531,0.81802,2444.6,2444.4,3.17937095]
[1751435954238,0.818,2444.7,2444.4,3.17937095]
[1751435954433,0.81801,2444.6,2444.4,3.17937095]
[1751435954635,0.818,2444.7,2444.4,3.17937095]
[1751435955129,0.81801,2444.6,2444.4,3.17937095]
[1751435956139,0.81801,2444.6,2444.4,2.36130095]
[1751435956438,0.81801,2444.6,2444.4,3.17938095]
[1751435956839,0.81804,2444.5,2444.4,2.36130095]
[1751435957239,0.81804,2444.5,2444.3,5.43902746]
[1751435957443,0.81803,2444.6,2444.4,3.17937095]
[1751435957737,4.07419,2444.8,2444.3,4.62093746]
[1751435958042,0.81807,2444.5,2444.3,2.19791]
[1751435958443,0.81808,2444.4,2444.3,1.3798]
[1751435958848,0.81806,2444.5,2444.3,2.19791]
[1751435959042,1.3176,2444.8,2444.4,2.36130095]
[1751435959241,1.3176,2444.8,2444.7,2.36130095]
[1751435959242,2.80724,2444.8,2444.7,2.36130095]
[1751435959438,0.81803,2444.6,2444.4,3.17937095]
[1751435959834,0.81804,2444.5,2444.4,0.81807]
[1751435960039,0.81804,2444.5,2444.3,3.17939095]
[1751435960243,0.81803,2444.6,2444.4,0.81808]
[1751435960850,0.81803,2444.6,2444.5,0.81804]
[1751435961345,0.81803,2444.6,2444.4,0.81806]
[1751435961546,0.81803,2444.6,2444.5,0.81804]
[1751435961844,0.81803,2444.6,2444.4,0.81805]
[1751435962550,0.81804,2444.5,2444.4,0.81805]
[1751435962951,0.81803,2444.6,2444.4,0.81805]
[1751435963550,0.81804,2444.5,2444.4,0.81805]
[1751435963856,0.81808,2444.4,2444.3,3.24113746]
[1751435964054,0.8181,2444.4,2444.2,5.48156746]
[1751435964351,0.8181,2444.4,2444.3,2.36130095]
[1751435966050,0.6764,2444.6,2444.2,7.02473841]
[1751435966051,0.81811,2444.3,2444.2,7.02473841]
[1751435966547,0.81811,2444.3,2444.2,6.31453841]
[1751435966749,0.81811,2444.3,2444.2,3.24113746]
[1751435967446,0.81818,2444.1,2444.0,4.05772149]
[1751435967645,0.81816,2444.2,2444.0,4.87591149]
[1751435968855,0.81816,2444.2,2444.0,6.24491149]
[1751435969049,0.81821,2444.0,2443.9,4.87596149]
[1751435969353,0.81821,2444.0,2443.9,4.05772149]
[1751435969747,0.81821,2444.0,2443.9,4.87597149]
[1751435970856,0.81821,2444.0,2443.9,4.05772149]
[1751435971057,0.81819,2444.1,2443.9,4.05772149]
[1751435971252,0.81819,2444.1,2444.0,2.36130095]
[1751435971454,0.81819,2444.1,2444.0,6.41902244]
[1751435973457,0.81819,2444.1,2444.0,2.36130095]
[1751435977056,0.81819,2444.1,2444.0,7.09123081]
[1751435977264,0.81819,2444.1,2444.0,4.43180095]
[1751435981569,0.81819,2444.1,2444.0,5.25001095]
[1751435981772,0.81815,2444.2,2444.1,0.81816]
[1751435982068,0.81815,2444.2,2444.1,7.78026916]
[1751435982270,0.81815,2444.2,2444.1,3.73170095]
[1751435983672,0.81815,2444.2,2444.1,4.54988095]
[1751435984373,0.81815,2444.2,2444.1,3.73170095]
[1751435985075,0.81815,2444.2,2444.1,4.54988095]
[1751435985269,0.81815,2444.2,2444.1,3.73170095]
[1751435986871,0.81815,2444.2,2444.1,6.41077629]
[1751435987971,0.81815,2444.2,2444.1,4.04947534]
[1751435992377,0.81821,2444.0,2443.9,8.03022276]
[1751435994184,0.81821,2444.0,2443.9,9.34022276]
[1751435995582,0.81821,2444.0,2443.9,8.03022276]
[1751435995985,0.81821,2444.0,2443.9,2.36130095]
[1751435996286,0.81825,2443.9,2443.8,5.66892181]
[1751435996485,4.1712,2444.2,2443.8,5.66892181]
[1751435996786,2.94394,2444.2,2444.1,4.0548127]
[1751435997487,5.30524095,2444.2,2444.1,4.0548127]
[1751435997681,10.30524095,2444.2,2444.1,4.0548127]
[1751435997880,0.81818,2444.1,2444.0,4.0548127]
[1751435998083,2.26358,2444.1,2444.0,4.0548127]
[1751435998282,7.26358,2444.1,2444.0,4.0548127]
[1751435998482,0.81821,2444.0,2443.9,4.0548127]
[1751435998680,0.81825,2443.9,2443.8,4.0548127]
[1751436000185,2.16655,2443.9,2443.8,4.0548127]
[1751436001485,0.81825,2443.9,2443.8,4.0548127]
[1751436001787,0.81828,2443.8,2443.7,4.0548127]
[1751436002692,3.17958095,2443.8,2443.7,4.0548127]
[1751436003391,3.88108095,2443.8,2443.7,4.0548127]
[1751436003594,0.81831,2443.7,2443.6,4.0548127]
[1751436003788,2.16121,2443.7,2443.6,4.0548127]
[1751436004484,0.81835,2443.6,2443.5,4.0548127]
[1751436005486,1.3429,2443.7,2443.4,4.0548127]
[1751436005687,0.81838,2443.5,2443.2,10.25098276]
[1751436005892,0.81836,2443.6,2443.3,0.81844]
[1751436006090,0.81836,2443.6,2443.5,4.05945039]
[1751436006495,2.04505,2444.6,2443.5,11.42075134]
[1751436006793,0.81816,2444.2,2444.1,3.24531925]
[1751436007095,0.81813,2444.3,2444.1,3.24531925]
[1751436007594,0.81813,2444.3,2444.1,4.57011925]
[1751436007793,0.81813,2444.3,2444.2,3.24531925]
[1751436008193,0.7242,2444.5,2444.2,3.24531925]
[1751436008393,0.81811,2444.3,2444.2,3.24531925]
[1751436008590,0.81814,2444.2,2444.1,3.68610095]
[1751436008788,0.81814,2444.2,2444.1,7.74555134]
[1751436009189,58.901,2445.2,2444.1,7.74555134]
[1751436009501,2.04483,2444.9,2444.6,3.24310461]
[1751436009693,0.81798,2444.7,2444.6,3.24310461]
[1751436010095,5.81798,2444.7,2444.6,3.24310461]
[1751436010297,0.81801,2444.6,2444.5,3.24310461]
[1751436010697,0.81807,2444.5,2444.3,6.41543426]
[1751436010897,0.6698,2444.7,2444.4,0.81806]
[1751436011099,1.48778,2444.7,2444.6,3.24720206]
[1751436019310,0.81801,2444.6,2444.5,3.24720206]
[1751436032418,0.81808,2444.4,2444.3,4.05413331]
[1751436032623,0.81808,2444.4,2444.3,5.36563331]
[1751436033618,0.81808,2444.4,2444.3,4.05413331]
[1751436035821,3.17938095,2444.4,2444.3,4.05413331]
[1751436036129,0.81814,2444.2,2444.1,4.05413331]
[1751436036327,3.17944095,2444.2,2444.1,4.05413331]
[1751436036523,0.81821,2444.0,2443.9,4.05413331]
[1751436036723,3.17951095,2444.0,2443.9,4.05413331]
[1751436036927,0.81825,2443.9,2443.8,4.05413331]
[1751436037226,26.48015,2443.9,2443.8,4.05413331]
[1751436037421,0.81828,2443.8,2443.7,5.48713331]
[1751436038929,0.81828,2443.8,2443.7,4.76273331]
[1751436040427,0.81828,2443.8,2443.7,0.7086]
[1751436041028,0.81828,2443.8,2443.7,2.1048]
[1751436044932,0.682,2444.1,2443.7,4.46610095]
[1751436045125,0.81825,2443.9,2443.8,1.4115]
[1751436055139,0.81823,2444.0,2443.8,5.46563331]
[1751436055439,0.81823,2444.0,2443.9,1.3771]
[1751436057342,0.81823,2444.0,2443.9,5.43123331]
[1751436062447,0.81823,2444.0,2443.9,1.3771]